bitfinex/quotes_SOLUSD_20260223
["timestamp","ask_amount","ask_price","bid_price","bid_amount"]
[1771828336004,12.70518879,78.708,78.69,4.97570913]
[1771828336402,13.20548974,78.708,78.69,4.97570913]
[1771828336699,0.50030095,78.707,78.682,12.70924178]
[1771828336898,0.50030095,78.707,78.68,4.97570913]
[1771828337099,0.50030095,78.707,78.67,4.97570913]
[1771828337602,0.50030095,78.705,78.671,12.71116421]
[1771828338504,0.50030095,78.705,78.68,4.97570913]
[1771828339004,0.50030095,78.705,78.671,12.71116421]
[1771828339005,0.50030095,78.705,78.69,4.97570913]
[1771828339394,0.50030095,78.705,78.68,4.97570913]
[1771828340500,12.70583451,78.704,78.68,4.97570913]
[1771828341005,0.50030095,78.705,78.681,12.70954868]
[1771828341204,0.1,78.73,78.681,12.70954868]
[1771828341205,12.801789,78.73,78.69,4.97570913]
[1771828341411,12.801789,78.73,78.71,4.97570913]
[1771828343313,0.1,78.73,78.71,4.97570913]
[1771828343495,0.1,78.73,78.711,12.70470455]
[1771828344999,0.60030095,78.73,78.71,4.97570913]
[1771828346002,0.60030095,78.73,78.703,12.70599595]
[1771828346192,0.60030095,78.73,78.71,4.97570913]
[1771828347198,0.60030095,78.73,78.711,12.70470455]
[1771828348593,0.60030095,78.73,78.676,108.03802937]
[1771828348815,0.60030095,78.73,78.7,4.97570913]
[1771828348994,0.60030095,78.73,78.71,4.97570913]
[1771828351616,0.50030095,78.728,78.69,4.97570913]
[1771828352816,0.50030095,78.726,78.68,4.97570913]
[1771828353718,0.50030095,78.726,78.659,62.0]
[1771828353719,4.97570913,78.71,78.67,4.97570913]
[1771828353902,0.50030095,78.709,78.66,4.97570913]
[1771828354399,0.50030095,78.709,78.67,4.97570913]
[1771828355196,0.50030095,78.707,78.671,12.71116421]
[1771828357302,12.70551165,78.706,78.671,12.71116421]
[1771828357516,0.50030095,78.705,78.671,12.71116421]
[1771828363308,0.50030095,78.703,78.671,12.71116421]
[1771828365520,0.50030095,78.703,78.68,4.97041862]
[1771828365818,0.50030095,78.701,78.68,4.97041862]
[1771828369024,12.7064803,78.7,78.68,4.97041862]
[1771828369224,0.50030095,78.699,78.68,4.97041862]
[1771828370327,12.70389755,78.716,78.69,4.97041862]
[1771828370639,13.2041985,78.716,78.7,4.97041862]
[1771828370940,0.50030095,78.715,78.69,4.97041862]
[1771828371428,0.50030095,78.715,78.691,12.70793356]
[1771828372610,0.50030095,78.709,78.644,63.57764101]
[1771828372809,0.50030095,78.709,78.67,4.97041862]
[1771828373411,0.50030095,78.707,78.671,12.71116421]
[1771828373723,0.50030095,78.707,78.67,4.97041862]
[1771828374533,0.50030095,78.707,78.67,17.68163663]
[1771828375436,0.50030095,78.705,78.67,17.68163663]
[1771828377730,0.50030095,78.703,78.67,17.68163663]
[1771828377924,0.50030095,78.703,78.67,12.71121801]
[1771828378126,0.50030095,78.703,78.67,17.68163663]
[1771828380341,0.50030095,78.703,78.68,4.97041862]
[1771828380819,12.7061574,78.702,78.68,4.97041862]
[1771828385031,0.50030095,78.702,78.68,4.97041862]
[1771828385738,0.50030095,78.716,78.69,4.97041862]
[1771828387235,31.75948895,78.717,78.68,17.68007428]
[1771828387236,0.50030095,78.714,78.68,17.68007428]
[1771828389446,44.46533609,78.713,78.68,4.97041862]
[1771828389658,0.50030095,78.709,78.661,31.78188573]
[1771828389948,44.46533609,78.713,78.622,44.51680191]
[1771828389949,0.50030095,78.679,78.622,44.51680191]
[1771828391527,0.50030095,78.677,78.641,12.71601327]
[1771828392036,0.50030095,78.669,78.632,12.71746871]
[1771828393336,0.50030095,78.669,78.632,44.51114049]
[1771828395032,0.50030095,78.669,78.53,8.22217243]
[1771828395033,0.50030095,78.649,78.61,4.97041862]
[1771828395240,0.50030095,78.649,78.601,12.72248444]
[1771828395241,0.50030095,78.629,78.601,12.72248444]
[1771828395940,0.50030095,78.629,78.6,0.2]
[1771828396853,209.74220774,78.668,78.6,0.2]
[1771828396854,0.50030095,78.658,78.621,12.71924803]
[1771828401152,0.50030095,78.669,78.64,4.97041862]
[1771828401358,0.50030095,78.669,78.604,3.69383402]
[1771828401359,0.50030095,78.669,78.63,4.97041862]
[1771828401564,0.50030095,78.668,78.64,4.97041862]
[1771828404256,6.60909249,78.697,78.64,4.97041862]
[1771828404257,0.50030095,78.683,78.66,4.97041862]
[1771828405250,0.50030095,78.683,78.661,12.71278015]
[1771828405973,0.50030095,78.698,78.67,4.97041862]
[1771828407469,0.50030095,78.698,78.68,4.97041862]
[1771828407673,4.97041862,78.72,78.671,12.71116421]
[1771828407674,0.50030095,78.714,78.69,4.97041862]
[1771828408665,0.50030095,78.723,78.69,4.97041862]
[1771828408956,0.50030095,78.723,78.7,4.97041862]
[1771828409464,0.50030095,78.723,78.69,4.97041862]
[1771828409783,0.50030095,78.721,78.691,12.70793356]
[1771828410250,0.50030095,78.721,78.69,4.97041862]
[1771828411946,0.50030095,78.719,78.69,4.97041862]
[1771828414475,0.50030095,78.717,78.69,4.97041862]
[1771828416905,0.50030095,78.709,78.649,44.5015194]
[1771828417071,0.50030095,78.699,78.649,44.5015194]
[1771828417269,0.50030095,78.699,78.66,4.97071427]
[1771828418475,0.50030095,78.697,78.661,12.71278015]
[1771828418682,4.97071427,78.69,78.661,12.71278015]
[1771828419063,0.50030095,78.689,78.661,12.71278015]
[1771828419273,4.97071427,78.68,78.661,12.71278015]
[1771828420061,0.50030095,78.689,78.661,12.71278015]
[1771828420262,4.97071427,78.67,78.637,31.79133541]
[1771828420573,0.50030095,78.674,78.641,12.71601327]
[1771828421281,0.50030095,78.674,78.641,44.50604645]
[1771828421777,4.97071427,78.67,78.641,44.50604645]
[1771828423579,4.97071427,78.67,78.64,4.97071427]
[1771828424678,0.50030095,78.674,78.64,4.97071427]
[1771828425864,0.50030095,78.674,78.641,12.71601327]
[1771828426367,0.50030095,78.674,78.641,44.50604645]
[1771828426561,4.97071427,78.7,78.66,4.97071427]
[1771828426873,4.97071427,78.7,78.67,4.97071427]
[1771828427488,4.97071427,78.7,78.671,12.71116421]
[1771828430568,4.97071427,78.7,78.663,31.78112907]
[1771828430780,4.97071427,78.7,78.67,4.97071427]
[1771828432188,12.70560656,78.706,78.671,12.71116421]
[1771828432882,0.50030095,78.708,78.671,12.71116421]
[1771828433388,13.20565117,78.707,78.671,12.71116421]
[1771828433569,0.50030095,78.706,78.671,12.71116421]
[1771828433882,0.50030095,78.706,78.671,44.48907474]
[1771828437285,4.97071427,78.71,78.68,4.97071427]
[1771828437789,5.47101522,78.71,78.681,12.70954868]
[1771828438093,0.50030095,78.709,78.681,12.70954868]
[1771828438696,0.50030095,78.709,78.681,44.48342038]
[1771828438893,0.50030095,78.719,78.681,44.48342038]
[1771828439074,4.97071427,78.71,78.681,44.48342038]
[1771828439674,5.47101522,78.71,78.681,44.48342038]
[1771828439874,0.50030095,78.709,78.681,44.48342038]
[1771828440797,0.50030095,78.709,78.681,12.70954868]
[1771828440995,0.50030095,78.708,78.681,12.70954868]
[1771828446293,0.50030095,78.708,78.671,44.4888231]
[1771828449402,0.50030095,78.708,78.651,108.07237033]
[1771828449696,0.50030095,78.708,78.652,62.0]
[1771828452000,0.50030095,78.708,78.653,108.06962224]
[1771828452585,0.50030095,78.708,78.654,1.27139115]
[1771828453603,0.50030095,78.706,78.654,1.27139115]
[1771828453984,0.50030095,78.706,78.655,62.0]
[1771828454804,0.50030095,78.706,78.657,44.49699326]
[1771828455189,0.50030095,78.699,78.657,44.49699326]
[1771828455797,0.50030095,78.704,78.658,1.2713265]
[1771828456000,0.50030095,78.722,78.658,1.2713265]
[1771828456502,5.06876888,78.73,78.658,1.2713265]
[1771828456503,0.60030095,78.73,78.66,3.69383402]
[1771828456885,0.60030095,78.73,78.665,3.69383402]
[1771828458309,0.60030095,78.73,78.667,158.89763177]
[1771828458510,0.60030095,78.73,78.668,1.27116489]
[1771828459409,0.1,78.73,78.672,3.69383402]
[1771828459587,0.1,78.73,78.673,1.2710841]
[1771828460409,0.1,78.73,78.678,5.36086188]
[1771828460609,0.1,78.73,78.679,1.27098717]
[1771828461304,0.1,78.74,78.679,1.27098717]
[1771828461305,0.1,78.74,78.682,3.69383402]
[1771828461607,0.1,78.74,78.683,4.96475658]
[1771828462106,0.1,78.74,78.687,3.69383402]
[1771828462292,0.50030095,78.753,78.693,3.69383402]
[1771828462806,0.50030095,78.753,78.694,1.27074491]
[1771828463105,0.50030095,78.753,78.693,3.69383402]
[1771828463609,0.50030095,78.753,78.693,4.96459507]
[1771828464505,0.50030095,78.753,78.697,3.69383402]
[1771828464709,0.50030095,78.753,78.698,1.27068032]
[1771828465089,0.50030095,78.759,78.698,1.27068032]
[1771828466301,0.1,78.76,78.702,3.69383402]
[1771828466492,0.1,78.76,78.703,1.27059959]
[1771828466699,0.60030095,78.76,78.703,1.27059959]
[1771828467094,0.60030095,78.76,78.707,3.69383402]
[1771828467297,0.1,78.78,78.712,0.48861086]
[1771828467500,5.06876888,78.78,78.712,0.48861086]
[1771828467702,0.1,78.78,78.712,0.48861086]
[1771828468209,12.69373817,78.779,78.712,0.48861086]
[1771828468516,1e-08,78.79,78.732,0.48861086]
[1771828468698,1e-08,78.79,78.736,0.48861086]
[1771828468898,1e-08,78.79,78.738,0.48861086]
[1771828469097,1e-08,78.79,78.74,0.48861086]
[1771828469311,1e-08,78.79,78.538,70.32167945]
[1771828469312,1e-08,78.79,78.751,0.48861086]
[1771828469703,1e-08,78.79,78.75,3.69383402]
[1771828469704,1e-08,78.79,78.753,0.48861086]
[1771828470105,0.1,78.8,78.756,0.48861086]
[1771828470612,0.1,78.8,78.758,0.48861086]
[1771828472110,0.4587729,78.799,78.758,0.48861086]
[1771828472614,0.4587729,78.799,78.76,0.48861086]
[1771828474522,0.4587729,78.799,78.762,0.48861086]
[1771828476713,0.4587729,78.799,78.764,0.48861086]
[1771828479204,0.4587729,78.799,78.765,44.43598044]
[1771828479406,0.1,78.8,78.765,44.43598044]
[1771828479407,0.1,78.8,78.769,0.48861086]
[1771828479605,5.19696997,78.85,78.77,0.48861086]
[1771828479606,44.38864157,78.849,78.77,0.48861086]
[1771828479813,44.38864157,78.849,78.772,0.48861086]
[1771828479814,12.68246902,78.849,78.772,0.48861086]
[1771828480007,12.68246902,78.849,78.774,0.48861086]
[1771828480317,4.95517867,78.82,78.774,0.48861086]
[1771828480501,4.95517867,78.83,78.774,0.48861086]
[1771828480702,4.95517867,78.84,78.775,0.48861086]
[1771828481421,0.4587729,78.837,78.777,0.48861086]
[1771828481624,0.4587729,78.829,78.777,0.48861086]
[1771828483426,0.4587729,78.819,78.777,0.48861086]
[1771828484704,0.4587729,78.819,78.778,44.42864758]
[1771828484929,0.4587729,78.819,78.779,0.48861086]
[1771828485522,0.4587729,78.817,78.779,0.48861086]
[1771828485828,0.4587729,78.809,78.778,12.69389931]
[1771828487530,0.4587729,78.809,78.773,12.69470503]
[1771828487727,0.4587729,78.809,78.773,13.15531176]
[1771828489440,0.4587729,78.809,78.774,0.46060673]
[1771828489609,0.4587729,78.809,78.776,0.46060673]
[1771828492812,0.48013746,78.808,78.778,0.46060673]
[1771828493024,0.48013746,78.808,78.777,12.69406044]
[1771828493236,0.48013746,78.808,78.777,13.15466717]
[1771828496641,0.48013746,78.808,78.778,0.46060673]
[1771828497213,0.48013746,78.806,78.778,0.46060673]
[1771828499634,0.48013746,78.806,78.779,13.1543449]
[1771828500021,0.48013746,78.804,78.779,13.1543449]
[1771828501137,0.48013746,78.804,78.779,12.69373817]
[1771828501435,12.68955015,78.805,78.742,50.79856031]
[1771828501436,0.48013746,78.789,78.742,0.46060673]
[1771828501634,0.48013746,78.769,78.742,0.46060673]
[1771828502016,0.48013746,78.767,78.742,0.46060673]
[1771828502839,0.48013746,78.767,78.743,0.46060673]
[1771828503331,0.48013746,78.777,78.743,0.46060673]
[1771828503933,0.48013746,78.775,78.745,0.46060673]
[1771828507039,12.69454388,78.774,78.746,12.69905772]
[1771828507244,0.48013746,78.773,78.747,0.46060673]
[1771828509724,0.48013746,78.773,78.748,12.6987352]
[1771828509931,0.48013746,78.773,78.749,0.46060673]
[1771828512636,0.48013746,78.773,78.75,13.15901942]
[1771828512820,0.48013746,78.773,78.75,12.69841269]
[1771828513026,0.48013746,78.771,78.742,0.46060673]
[1771828516333,0.48013746,78.769,78.737,13.16109417]
[1771828516532,0.48013746,78.769,78.738,0.46060673]
[1771828520450,0.49384702,78.767,78.738,0.46060673]
[1771828522053,0.49384702,78.767,78.739,12.70018669]
[1771828522239,0.49384702,78.767,78.74,0.45614607]
[1771828522439,0.49384702,78.765,78.74,0.45614607]
[1771828525332,0.49384702,78.763,78.741,12.69986411]
[1771828525549,0.49384702,78.763,78.741,13.15601018]
[1771828526058,0.49384702,78.763,78.741,0.45614607]
[1771828527254,0.49384702,78.761,78.741,0.45614607]
[1771828527750,4.95517867,78.76,78.737,12.70046292]
[1771828527945,0.49384702,78.761,78.737,12.70046292]
[1771828528147,0.49384702,78.759,78.737,12.70046292]
[1771828528448,0.49384702,78.759,78.738,0.45614607]
[1771828533653,0.49384702,78.759,78.74,0.45614607]
[1771828535061,0.49384702,78.759,78.742,0.45614607]
[1771828546461,0.49384702,78.759,78.744,0.45614607]
[1771828547951,0.49051051,78.764,78.744,0.45614607]
[1771828548164,0.49051051,78.759,78.744,0.45614607]
[1771828550471,0.49051051,78.759,78.745,13.15655408]
[1771828550771,0.49051051,78.759,78.745,0.45733509]
[1771828552171,12.69597204,78.766,78.745,0.45733509]
[1771828552471,4.96200218,78.78,78.748,0.45733509]
[1771828552868,4.96200218,78.77,78.746,12.69905772]
[1771828553071,4.96200218,78.76,78.746,13.15639281]
[1771828553264,4.96200218,78.76,78.747,0.45733509]
[1771828553464,4.96200218,78.77,78.747,0.45733509]
[1771828554276,0.19226083,78.769,78.748,12.6987352]
[1771828555475,0.19226065,78.759,78.723,0.45733509]
[1771828555662,0.19226065,78.755,78.724,0.45733509]
[1771828556579,0.19226065,78.755,78.726,0.45733509]
[1771828559377,0.19226065,78.755,78.728,0.45733509]
[1771828560781,0.19226065,78.755,78.73,0.45733509]
[1771828562468,0.19226065,78.755,78.732,0.45733509]
[1771828564573,0.19225907,78.753,78.728,0.45733509]
[1771828564780,0.19225907,78.749,78.728,0.45733509]
[1771828567366,0.19225857,78.753,78.73,0.45733509]
[1771828567976,12.69606261,78.765,78.73,0.45733509]
[1771828569482,0.19225841,78.768,78.732,0.45733509]
[1771828571884,0.19225841,78.768,78.734,0.45733509]
[1771828572982,0.19225779,78.775,78.734,0.45733509]
[1771828574295,3.69383402,78.8,78.735,44.45291166]
[1771828574588,0.19225749,78.798,78.738,3.69383402]
[1771828574774,0.19225749,78.804,78.739,0.45733509]
[1771828576392,0.1922572,78.823,78.744,0.45733509]
[1771828576598,0.1,78.86,78.743,3.69383402]
[1771828576599,0.1,78.88,78.743,4.96378817]
[1771828576776,50.66119188,78.956,78.852,6.63304915]
[1771828576979,0.49051051,78.918,78.853,0.45733509]
[1771828577293,4.96200218,78.89,78.856,0.45733509]
[1771828577469,0.46600255,78.889,78.852,6.63304915]
[1771828577664,0.49206026,78.879,78.853,0.48809864]
[1771828578067,4.96200218,78.88,78.798,3.69383402]
[1771828578068,0.49206026,78.859,78.798,3.69383402]
[1771828578466,0.49206026,78.866,78.802,3.69383402]
[1771828578968,3.69383402,78.901,78.802,3.69383402]
[1771828578969,0.49206026,78.898,78.803,5.36086188]
[1771828579168,0.49206026,78.889,78.806,3.69383402]
[1771828579518,0.49206026,78.879,78.81,3.69383402]
[1771828580094,0.49206026,78.879,78.811,0.48809864]
[1771828580292,0.49206026,78.869,78.811,0.48809864]
[1771828580491,0.49206026,78.869,78.816,0.48809864]
[1771828581186,0.49206026,78.869,78.799,101.524131]
[1771828581187,4.96200218,78.83,78.801,12.69019428]
[1771828581381,4.96200218,78.83,78.805,0.48809864]
[1771828581686,0.49206026,78.829,78.805,0.48809864]
[1771828581895,4.96200218,78.82,78.798,0.48809864]
[1771828582073,0.49206026,78.829,78.798,0.48809864]
[1771828582378,0.49206026,78.829,78.8,0.48809864]
[1771828582580,0.49206026,78.829,78.802,0.48809864]
[1771828583370,4.96200218,78.83,78.802,0.48809864]
[1771828583371,0.49206026,78.836,78.802,0.48809864]
[1771828583571,4.96200218,78.83,78.802,0.48809864]
[1771828583873,0.49206026,78.829,78.802,0.48809864]
[1771828584789,0.49206026,78.819,78.794,0.48809864]
[1771828584992,4.96200218,78.81,78.785,0.48809864]
[1771828585190,0.49206026,78.809,78.777,0.48809864]
[1771828585372,4.96200218,78.8,78.777,0.48809864]
[1771828585694,4.96200218,78.79,78.773,12.69470503]
[1771828586806,0.49206026,78.789,78.768,12.69549583]
[1771828587001,0.49206026,78.779,78.752,31.74507138]
[1771828587174,0.49206026,78.778,78.756,12.69728595]
[1771828587381,13.28570817,78.8,78.757,0.48809864]
[1771828587596,3.69383402,78.811,78.757,0.48809864]
[1771828587597,13.28570817,78.79,78.757,0.48809864]
[1771828587796,0.49206026,78.789,78.757,0.48809864]
[1771828588103,0.49206026,78.769,78.749,12.69852855]
[1771828588281,13.28570817,78.77,78.749,12.69852855]
[1771828588784,13.28570817,78.78,78.743,0.48809864]
[1771828588983,13.28570817,78.769,78.743,0.48809864]
[1771828589605,13.28570817,78.78,78.744,0.48809864]
[1771828590180,0.49206026,78.779,78.744,0.48809864]
[1771828590485,0.49206026,78.787,78.744,0.48809864]
[1771828590897,13.28570817,78.78,78.746,0.48809864]
[1771828591493,13.28570817,78.77,78.746,0.48809864]
[1771828591696,13.77776843,78.77,78.746,0.48809864]
[1771828591895,0.49206026,78.778,78.746,0.48809864]
[1771828592498,0.49206026,78.795,78.746,0.48809864]
[1771828592698,0.49206026,78.809,78.749,0.48809864]
[1771828592889,0.49206026,78.809,78.751,0.48809864]
[1771828594016,0.49206026,78.834,78.755,3.69383402]
[1771828594200,0.49206026,78.827,78.756,0.48809864]
[1771828594403,0.49206026,78.847,78.769,0.48809864]
[1771828594615,0.49206026,78.829,78.769,0.48809864]
[1771828595118,13.28570817,78.82,78.769,0.48809864]
[1771828595324,0.49206026,78.829,78.774,0.48809864]
[1771828597711,0.49206026,78.844,78.779,0.48809864]
[1771828597906,0.49206026,78.844,78.784,0.48809864]
[1771828598799,3.69383402,78.871,78.789,0.48809864]
[1771828598800,0.49206026,78.852,78.789,0.48809864]
[1771828598989,0.49206026,78.852,78.79,0.48809864]
[1771828600505,0.49206026,78.839,78.79,0.48809864]
[1771828601013,0.49206026,78.848,78.792,0.48809864]
[1771828601308,0.49206026,78.848,78.791,158.64756125]
[1771828601309,0.49206026,78.848,78.794,0.48809864]
[1771828602304,13.25982664,78.83,78.796,0.48809864]
[1771828602511,0.49206026,78.829,78.797,0.48809864]
[1771828602817,13.25982664,78.84,78.798,0.48809864]
[1771828603002,13.25982664,78.85,78.8,0.48809864]
[1771828603202,13.25982664,78.84,78.8,0.48809864]
[1771828604708,13.25982664,78.84,78.802,0.48809864]
[1771828606192,0.23802274,78.829,78.802,0.48809864]
[1771828607006,13.25982664,78.84,78.804,0.48809864]
[1771828607205,0.23802264,78.849,78.804,0.48809864]
[1771828609897,0.23802235,78.858,78.806,0.47458378]
[1771828612315,0.23802235,78.858,78.808,0.47458378]
[1771828612716,0.23802207,78.849,78.808,0.47458378]
[1771828613612,0.23802197,78.857,78.808,0.47458378]
[1771828614113,0.23802197,78.857,78.81,0.47458378]
[1771828614794,0.23802188,78.849,78.81,0.47458378]
[1771828615511,4.95104258,78.85,78.81,0.47458378]
[1771828615698,0.23802179,78.858,78.81,0.47458378]
[1771828618312,0.23802153,78.849,78.812,0.47458378]
[1771828620423,0.23802136,78.839,78.814,0.47458378]
[1771828620629,0.23802136,78.846,78.814,0.47458378]
[1771828623328,0.23802111,78.852,78.816,0.47458378]
[1771828626625,0.23802111,78.852,78.799,50.76169172]
[1771828626626,3.69383402,78.877,78.818,0.47458378]
[1771828626837,50.67247968,78.939,78.817,209.34569951]
[1771828626838,4.95104258,78.92,78.82,3.69383402]
[1771828627007,0.23802087,78.911,78.831,0.47458378]
[1771828627412,0.23802079,78.909,78.831,0.47458378]
[1771828628625,0.23802079,78.909,78.836,0.47458378]
[1771828629135,0.23802079,78.909,78.835,4.96230614]
[1771828629136,0.23802072,78.916,78.838,0.47458378]
[1771828629310,0.23802064,78.923,78.838,0.47458378]
[1771828629510,0.23802064,78.923,78.84,0.47458378]
[1771828629710,0.23802064,78.919,78.842,0.47458378]
[1771828630532,13.23940287,78.91,78.842,0.47458378]
[1771828630712,0.23802056,78.899,78.847,0.47458378]
[1771828632439,0.23802041,78.889,78.847,0.47458378]
[1771828632640,0.1,78.93,78.848,1.26826298]
[1771828632818,310.2,78.986,78.848,1.26826298]
[1771828632819,50.63302725,79.0,78.853,0.47458378]
[1771828633130,50.63302725,79.0,78.859,5.36086188]
[1771828633131,13.23940287,79.0,78.859,5.36086188]
[1771828633313,13.23940287,79.0,78.856,38.12]
[1771828633314,101.17599815,79.071,78.868,38.12]
[1771828633514,12.65726653,79.006,78.882,5.36086188]
[1771828633713,12.65726653,79.006,78.907,0.50000313]
[1771828633933,13.23940287,79.0,78.919,0.50000313]
[1771828634122,13.23940287,78.98,78.919,0.50000313]
[1771828634324,44.30043287,79.006,78.919,0.50000313]
[1771828634637,13.23940287,78.97,78.92,12.6710593]
[1771828634836,13.23940287,78.97,78.921,0.50000313]
[1771828635138,50.63410861,78.999,78.916,0.50000313]
[1771828635139,13.23940287,78.95,78.916,0.50000313]
[1771828635917,12.66319695,78.969,78.907,31.68252734]
[1771828635918,13.23940287,78.94,78.907,0.50000313]
[1771828636117,13.23940287,78.93,78.89,0.50000313]
[1771828636330,13.23940287,78.92,78.89,0.50000313]
[1771828636717,13.23940287,78.9,78.863,0.50000313]
[1771828637735,13.23940287,78.89,78.854,0.50000313]
[1771828638115,13.23940287,78.89,78.85,12.68230818]
[1771828638425,13.23940287,78.88,78.85,12.68230818]
[1771828638838,13.23940287,78.88,78.843,0.50000313]
[1771828639036,13.23940287,78.88,78.842,12.68359503]
[1771828639648,13.23940287,78.87,78.842,12.68359503]
[1771828640320,13.23940287,78.88,78.842,12.68359503]
[1771828640724,13.23940287,78.89,78.843,0.50000313]
[1771828641024,13.23940287,78.88,78.844,12.68327329]
[1771828641440,13.23940287,78.87,78.844,12.68327329]
[1771828642120,3.69383402,78.899,78.845,0.50000313]
[1771828642121,16.36832916,78.899,78.845,0.50000313]
[1771828642443,13.23940287,78.87,78.844,12.68327329]
[1771828643023,13.23940287,78.86,78.837,12.68439945]
[1771828643440,13.23940287,78.87,78.837,12.68439945]
[1771828644447,13.23940287,78.88,78.838,0.50000313]
[1771828644648,13.23940287,78.87,78.838,0.50000313]
[1771828646438,13.23940287,78.87,78.839,13.1840808]
[1771828647060,50.68112285,78.925,78.834,0.50000313]
[1771828647265,13.23940287,78.89,78.834,0.50000313]
[1771828647529,13.23940287,78.9,78.834,0.50000313]
[1771828648554,13.23940287,78.89,78.836,0.50000313]
[1771828648732,13.23940287,78.9,78.836,0.50000313]
[1771828648928,44.34140345,78.933,78.838,3.69383402]
[1771828649133,13.23940287,78.91,78.839,0.50000313]
[1771828649333,13.23940287,78.9,78.839,0.50000313]
[1771828650976,13.23940287,78.91,78.841,0.50000313]
[1771828652074,12.67154098,78.917,78.841,0.50000313]
[1771828652075,13.23940287,78.89,78.841,0.50000313]
[1771828652273,13.23940287,78.9,78.841,0.50000313]
[1771828653574,13.23940287,78.9,78.843,0.50000313]
[1771828653777,13.23940287,78.91,78.843,0.50000313]
[1771828654077,13.23940287,78.9,78.843,0.50000313]
[1771828655582,13.23940287,78.9,78.845,0.50000313]
[1771828656383,13.23940287,78.92,78.848,0.50000313]
[1771828656595,12.66544234,78.955,78.848,0.50000313]
[1771828656758,13.23940287,78.92,78.848,0.50000313]
[1771828656958,13.23940287,78.9,78.848,0.50000313]
[1771828657596,13.23940287,78.91,78.848,0.50000313]
[1771828657794,13.23940287,78.91,78.847,3.69383402]
[1771828657795,13.23940287,78.91,78.85,0.50000313]
[1771828659975,13.23940287,78.91,78.852,0.50000313]
[1771828660812,44.34421244,78.928,78.852,0.50000313]
[1771828661091,13.23940287,78.9,78.852,0.50000313]
[1771828661393,3.69383402,78.925,78.852,0.50000313]
[1771828661598,13.24429372,78.92,78.852,0.50000313]
[1771828661894,13.24069056,78.92,78.871,0.50000313]
[1771828662078,12.67121985,78.919,78.873,0.50000313]
[1771828663501,12.67041711,78.924,78.875,0.50000313]
[1771828663791,44.34645988,78.924,78.875,0.50000313]
[1771828663983,13.24069056,78.9,78.874,12.67844917]
[1771828664291,13.24069056,78.89,78.858,0.50000313]
[1771828665102,3.69383402,78.921,78.853,0.50000313]
[1771828665400,13.24069056,78.9,78.861,0.50000313]
[1771828665581,13.24069056,78.9,78.862,44.38132433]
[1771828665772,13.24069056,78.9,78.863,0.50000313]
[1771828666790,13.24069056,78.89,78.862,12.68037838]
[1771828666990,13.24069056,78.88,78.862,12.68037838]
[1771828667381,13.24069056,78.88,78.851,31.70527309]
[1771828667681,3.69383402,78.917,78.852,0.50000313]
[1771828667884,13.24069056,78.89,78.852,0.50000313]
[1771828669587,13.24069056,78.89,78.853,0.50000313]
[1771828670876,13.24069056,78.89,78.855,0.50000313]
[1771828671386,13.24069056,78.9,78.861,0.50000313]
[1771828671591,13.24069056,78.91,78.871,0.50000313]
[1771828672507,25.91335998,78.91,78.871,0.50000313]
[1771828673006,25.91335998,78.91,78.873,0.50000313]
[1771828673900,12.67121985,78.919,78.881,0.50000313]
[1771828674090,13.24069056,78.91,78.881,0.50000313]
[1771828674685,12.67121985,78.919,78.881,0.50000313]
[1771828675199,13.24069056,78.93,78.891,0.50000313]
[1771828676776,13.24069056,78.94,78.9,13.24069056]
[1771828676982,13.24069056,78.94,78.901,0.50000313]
[1771828678003,13.24069056,78.94,78.892,158.44445569]
[1771828678004,13.24069056,78.95,78.911,0.50000313]
[1771828678592,13.24069056,78.94,78.911,0.50000313]
[1771828678797,13.24069056,78.93,78.904,12.67362871]
[1771828679312,3.69383402,78.953,78.838,35.35423192]
[1771828679479,13.24069056,78.96,78.875,0.50000313]
[1771828679480,13.24069056,78.91,78.875,0.50000313]
[1771828679684,13.24069056,78.93,78.891,0.50000313]
[1771828679888,3.69383402,78.948,78.901,0.50000313]
[1771828679889,13.24069056,78.94,78.901,0.50000313]
[1771828680205,3.69383402,78.948,78.901,0.50000313]
[1771828680206,13.24069056,78.93,78.901,0.50000313]
[1771828680503,13.24069056,78.94,78.901,0.50000313]
[1771828680703,3.69383402,78.956,78.901,0.50000313]
[1771828680883,12.66692444,78.946,78.911,0.50000313]
[1771828681085,12.6662366,78.951,78.92,13.24069056]
[1771828681313,12.66319695,78.969,78.93,13.24069056]
[1771828681491,12.66319695,78.969,78.931,0.50000313]
[1771828681805,3.69383402,78.966,78.931,0.50000313]
[1771828682494,12.6638384,78.965,78.932,13.16913605]
[1771828683691,44.30435828,78.999,78.95,13.24069056]
[1771828683889,44.30435828,78.999,78.933,0.50000313]
[1771828683890,13.24069056,78.97,78.933,0.50000313]
[1771828684096,13.24069056,78.99,78.951,0.50000313]
[1771828684297,44.30435828,78.999,78.96,13.24069056]
[1771828684499,44.30435828,78.999,78.96,13.74069369]
[1771828684707,12.65838808,78.999,78.97,13.24069056]
[1771828685297,0.1,79.0,78.97,13.24069056]
[1771828685710,0.1,79.0,78.961,0.50000313]
[1771828685905,13.24069056,78.99,78.951,0.50000313]
[1771828686209,3.69383402,78.996,78.95,12.66612223]
[1771828686388,44.30435828,78.999,78.95,12.66612223]
[1771828686389,13.24069056,78.98,78.95,12.66612223]